[Event "Marshall CC FIDE Premier August 2024"]
[Site "New York"]
[Date "2024.08.03"]
[Round "2.4"]
[White "Safranek, William"]
[Black "Knowles, Chase"]
[Result "1-0"]
[ECO "C02"]
[WhiteElo "2111"]
[BlackElo "1993"]
[Annotator "RC"]
[PlyCount "81"]
[EventDate "2024.08.02"]
[EventType "swiss"]
[EventCountry "USA"]
[SourceTitle "playchess.com"]
[Source "ChessBase"]
[SourceQuality "1"]
[TimeControl "5400+30"]

1. e4 {[%emt 0:00:06]} e6 {[%emt 0:00:20]} 2. d4 {[%emt 0:00:05]} d5 {[%emt 0:00:18]} 3. e5 {[%emt 0:00:03]} c5 {[%emt 0:00:04]} 4. c3 {[%emt 0:00:02]} Nc6 {[%emt 0:00:07]} 5. Nf3 {[%emt 0:00:03]} Bd7 {[%emt 0:00:05]} 6. Be2 {[%emt 0:00:03]} f6 {[%emt 0:01:36]} 7. O-O {[%emt 0:00:19]} fxe5 {[%emt 0:01:06]} 8. dxe5 {[%emt 0:00:50]} g6 {[%emt 0:01:13]} 9. Bf4 {[%emt 0:02:32]} Bg7 {[%emt 0:01:26]} 10. c4 {[%emt 0:06:52]} d4 {[%emt 0:02:16]} 11. Nbd2 {[%emt 0:00:58]} Qc7 {[%emt 0:04:46]} 12. Re1 {[%emt 0:00:07]} O-O-O {[%emt 0:04:38]} 13. Bd3 {[%emt 0:01:46]} Rf8 {[%emt 0:06:30]} 14. Bg3 {[%emt 0:01:35]} Nh6 {[%emt 0:07:19]} 15. h3 {[%emt 0:13:02]} Nf7 {[%emt 0:03:32]} 16. Qe2 {[%emt 0:09:58]} Nb4 {[%emt 0:07:45]} 17. Be4 {[%emt 0:04:18]} Bc6 {[%emt 0:01:01]} 18. a3 {[%emt 0:00:09]} d3 {[%emt 0:10:53]} 19. Bxd3 {[%emt 0:00:36]} Nxd3 {[%emt 0:00:19]} 20. Qxd3 {[%emt 0:00:04]} g5 {[%emt 0:04:09]} 21. b4 {[%emt 0:04:38]} g4 {[%emt 0:04:12]} 22. hxg4 {[%emt 0:00:07]} Nh6 {[%emt 0:00:10]} 23. b5 {[%emt 0:08:25]} Be8 {[%emt 0:00:38]} 24. a4 {[%emt 0:05:24]} Bg6 {[%emt 0:01:23]} 25. Qa3 {[%emt 0:00:08]} Nxg4 {[%emt 0:02:22]} 26. a5 {[%emt 0:00:11]} Rd8 {[%emt 0:02:24]} 27. Nb3 {[%emt 0:04:15]} Rd3 {[%emt 0:01:25]} 28. b6 {[%emt 0:00:27]} axb6 {[%emt 0:01:46]} 29. axb6 {[%emt 0:00:05]} Qc6 {[%emt 0:00:57]} 30. Qa8+ {[%emt 0:00:16]} Kd7 {[%emt 0:00:10]} 31. Nxc5+ {[%emt 0:00:05]} Ke7 {[%emt 0:01:38]} 32. Bh4+ {[%emt 0:00:07]} Kf7 {[%emt 0:00:28]} 33. Ng5+ {[%emt 0:00:18]} Ke7 {[%emt 0:00:16]} 34. Ngxe6+ {[%emt 0:00:22]} Kf7 {[%emt 0:00:09]} 35. Ng5+ {[%emt 0:00:19]} Ke7 {[%emt 0:00:03]} 36. Nf3+ {[%emt 0:00:26]} Kf7 {[%emt 0:00:20]} 37. e6+ {[%emt 0:00:04]} Qxe6 {[%emt 0:00:06]} 38. Ng5+ {[%emt 0:00:04]} Kf6 {[%emt 0:00:30]} 39. Rxe6+ {[%emt 0:00:06]} Kf5 {[%emt 0:00:05]} 40. Qxb7 {[%emt 0:00:15]} Rd4 {[%emt 0:01:03]} 41. Qf3+ {[%emt 0:00:09]} 1-0

[Event "Marshall CC FIDE Premier August 2024"]
[Site "New York"]
[Date "2024.08.03"]
[Round "2.5"]
[White "Chin, Spencer"]
[Black "Zhang, Alex"]
[Result "1/2-1/2"]
[ECO "E25"]
[WhiteElo "2129"]
[BlackElo "2032"]
[Annotator "RC"]
[PlyCount "111"]
[EventDate "2024.08.02"]
[EventType "swiss"]
[EventCountry "USA"]
[SourceTitle "playchess.com"]
[Source "ChessBase"]
[SourceQuality "1"]
[TimeControl "5400+30"]

1. d4 {[%emt 0:00:55]} Nf6 {[%emt 0:00:07]} 2. c4 {[%emt 0:00:04]} e6 {[%emt 0:00:07]} 3. Nc3 {[%emt 0:00:03]} Bb4 {[%emt 0:00:11]} 4. f3 {[%emt 0:00:41]} d5 {[%emt 0:00:21]} 5. a3 {[%emt 0:01:02]} Bxc3+ {[%emt 0:00:06]} 6. bxc3 {[%emt 0:00:04]} c5 {[%emt 0:00:10]} 7. cxd5 {[%emt 0:00:07]} Nxd5 {[%emt 0:00:08]} 8. Qd2 {[%emt 0:00:50]} O-O {[%emt 0:09:07]} 9. e3 {[%emt 0:08:46]} Nc6 {[%emt 0:10:29]} 10. Ne2 {[%emt 0:11:09]} Na5 {[%emt 0:10:29]} 11. Rb1 {[%emt 0:06:43]} Bd7 {[%emt 0:06:30]} 12. e4 {[%emt 0:07:00]} Ne7 {[%emt 0:05:56]} 13. Nf4 {[%emt 0:04:12]} cxd4 {[%emt 0:04:42]} 14. cxd4 {[%emt 0:55:54]} Rc8 {[%emt 0:00:55]} 15. Be2 {[%emt 0:00:00]} Ba4 {[%emt 0:07:21]} 16. O-O {[%emt 0:00:00]} Nb3 {[%emt 0:06:30]} 17. Qb4 {[%emt 0:00:00]} Qxd4+ {[%emt 0:00:12]} 18. Qxd4 {[%emt 0:00:00]} Nxd4 {[%emt 0:00:03]} 19. Rxb7 {[%emt 0:00:00]} Ng6 {[%emt 0:00:21]} 20. Nxg6 {[%emt 0:00:00]} Nxe2+ {[%emt 0:00:39]} 21. Kf2 {[%emt 0:00:00]} hxg6 {[%emt 0:06:46]} 22. Kxe2 {[%emt 0:00:00]} Rc2+ {[%emt 0:00:19]} 23. Ke3 {[%emt 0:00:00]} Rd8 {[%emt 0:09:28]} 24. Rb4 {[%emt 0:00:00]} Bc6 {[%emt 0:00:35]} 25. Rg1 {[%emt 0:00:00]} e5 {[%emt 0:01:37]} 26. Bb2 {[%emt 0:00:00]} f6 {[%emt 0:01:52]} 27. Rc1 {[%emt 0:00:37]} Rdd2 {[%emt 0:00:42]} 28. Rxc2 {[%emt 0:00:24]} Rxc2 {[%emt 0:00:04]} 29. g4 {[%emt 0:00:34]} Rxh2 {[%emt 0:00:58]} 30. Bc3 {[%emt 0:02:33]} a6 {[%emt 0:04:52]} 31. Rb2 {[%emt 0:00:39]} Rh3 {[%emt 0:01:45]} 32. Rb6 {[%emt 0:02:51]} Bd7 {[%emt 0:01:19]} 33. g5 {[%emt 0:00:57]} Bg4 {[%emt 0:02:47]} 34. gxf6 {[%emt 0:00:06]} Rxf3+ {[%emt 0:00:08]} 35. Kd2 {[%emt 0:00:06]} gxf6 {[%emt 0:02:03]} 36. Bxe5 {[%emt 0:01:02]} Rxa3 {[%emt 0:05:56]} 37. Rxf6 {[%emt 0:00:29]} Bh5 {[%emt 0:00:05]} 38. Bc3 {[%emt 0:00:31]} Ra2+ {[%emt 0:00:50]} 39. Ke3 {[%emt 0:00:14]} Kh7 {[%emt 0:00:26]} 40. e5 {[%emt 0:00:36]} a5 {[%emt 0:01:48]} 41. e6 {[%emt 0:01:08]} a4 {[%emt 0:00:40]} 42. Rf7+ {[%emt 0:00:27]} Kh6 {[%emt 0:01:14]} 43. Kd3 {[%emt 0:00:17]} g5 {[%emt 0:00:35]} 44. Ra7 {[%emt 0:00:53]} Re2 {[%emt 0:00:24]} 45. Rxa4 {[%emt 0:00:28]} Rxe6 {[%emt 0:00:04]} 46. Ra5 {[%emt 0:00:28]} Be2+ {[%emt 0:00:35]} 47. Kd2 {[%emt 0:00:09]} Bf3 {[%emt 0:00:31]} 48. Re5 {[%emt 0:00:07]} Rg6 {[%emt 0:00:27]} 49. Ke1 {[%emt 0:00:12]} g4 {[%emt 0:00:42]} 50. Bd2+ {[%emt 0:00:25]} Kh7 {[%emt 0:00:05]} 51. Rh5+ {[%emt 0:00:04]} Kg7 {[%emt 0:00:04]} 52. Rg5 {[%emt 0:00:17]} g3 {[%emt 0:00:02]} 53. Rxg6+ {[%emt 0:00:06]} Kxg6 {[%emt 0:00:04]} 54. Kf1 {[%emt 0:00:04]} Kf5 {[%emt 0:00:04]} 55. Kg1 {[%emt 0:00:07]} Kg4 {[%emt 0:00:04]} 56. Be1 {[%emt 0:00:04]} 1/2-1/2

[Event "Marshall CC FIDE Premier August 2024"]
[Site "New York"]
[Date "2024.08.04"]
[Round "3.1"]
[White "Bortnyk, Mykola"]
[Black "Safranek, William"]
[Result "1-0"]
[ECO "A80"]
[WhiteElo "2432"]
[BlackElo "2111"]
[Annotator "RC"]
[PlyCount "47"]
[EventDate "2024.08.02"]
[EventType "swiss"]
[EventCountry "USA"]
[SourceTitle "playchess.com"]
[Source "ChessBase"]
[SourceQuality "1"]
[TimeControl "5400+30"]

1. d4 {[%emt 0:00:24]} f5 {[%emt 0:00:03]} 2. Nc3 {[%emt 0:00:50]} Nf6 {[%emt 0:00:04]} 3. Bf4 {[%emt 0:00:19]} e6 {[%emt 0:00:04]} 4. e3 {[%emt 0:01:12]} Bb4 {[%emt 0:00:46]} 5. Nge2 {[%emt 0:00:42]} d5 {[%emt 0:00:04]} 6. h4 {[%emt 0:00:38]} b6 {[%emt 0:04:30]} 7. h5 {[%emt 0:06:48]} h6 {[%emt 0:09:48]} 8. a3 {[%emt 0:01:00]} Bd6 {[%emt 0:00:12]} 9. Bxd6 {[%emt 0:04:51]} Qxd6 {[%emt 0:00:08]} 10. Nf4 {[%emt 0:00:14]} O-O {[%emt 0:02:04]} 11. Nb5 {[%emt 0:02:52]} Qd8 {[%emt 0:00:10]} 12. c4 {[%emt 0:00:09]} Re8 {[%emt 0:04:58]} 13. Rc1 {[%emt 0:03:32]} c6 {[%emt 0:00:51]} 14. Nc3 {[%emt 0:00:09]} Qd6 {[%emt 0:06:14]} 15. Bd3 {[%emt 0:04:05]} e5 {[%emt 0:05:16]} 16. dxe5 {[%emt 0:00:07]} Qxe5 {[%emt 0:00:02]} 17. Ng6 {[%emt 0:00:26]} Qd6 {[%emt 0:02:04]} 18. cxd5 {[%emt 0:00:08]} Nxd5 {[%emt 0:01:29]} 19. Nxd5 {[%emt 0:04:35]} cxd5 {[%emt 0:00:06]} 20. Qc2 {[%emt 0:01:31]} Ba6 {[%emt 0:11:39]} 21. Qa4 {[%emt 0:02:26]} b5 {[%emt 0:00:20]} 22. Bxb5 {[%emt 0:00:20]} Bxb5 {[%emt 0:00:04]} 23. Qxb5 {[%emt 0:00:06]} Nd7 {[%emt 0:00:07]} 24. Rc6 {[%emt 0:00:04]} 1-0

[Event "Marshall CC FIDE Premier August 2024"]
[Site "New York"]
[Date "2024.08.04"]
[Round "3.2"]
[White "Nasta, Kiren Vivek"]
[Black "Nakada, Akira"]
[Result "0-1"]
[ECO "C07"]
[WhiteElo "2148"]
[BlackElo "2417"]
[Annotator "RC"]
[PlyCount "88"]
[EventDate "2024.08.02"]
[EventType "swiss"]
[EventCountry "USA"]
[SourceTitle "playchess.com"]
[Source "ChessBase"]
[SourceQuality "1"]
[TimeControl "5400+30"]

1. e4 {[%emt 0:00:03]} e6 {[%emt 0:00:26]} 2. d4 {[%emt 0:00:04]} d5 {[%emt 0:00:05]} 3. Nd2 {[%emt 0:00:03]} c5 {[%emt 0:00:15]} 4. Ngf3 {[%emt 0:00:05]} cxd4 {[%emt 0:00:20]} 5. Nxd4 {[%emt 0:00:08]} Nc6 {[%emt 0:00:04]} 6. Bb5 {[%emt 0:00:09]} Bd7 {[%emt 0:00:06]} 7. Nxc6 {[%emt 0:00:04]} bxc6 {[%emt 0:00:04]} 8. Bd3 {[%emt 0:00:04]} Bd6 {[%emt 0:00:06]} 9. Qe2 {[%emt 0:00:10]} Ne7 {[%emt 0:00:31]} 10. e5 {[%emt 0:02:00]} Bc7 {[%emt 0:00:30]} 11. Nf3 {[%emt 0:00:15]} Ng6 {[%emt 0:00:23]} 12. O-O {[%emt 0:00:20]} O-O {[%emt 0:00:08]} 13. b3 {[%emt 0:00:49]} c5 {[%emt 0:04:02]} 14. c4 {[%emt 0:02:54]} Bc6 {[%emt 0:01:33]} 15. Ng5 {[%emt 0:05:02]} Qe8 {[%emt 0:02:34]} 16. f4 {[%emt 0:01:44]} f5 {[%emt 0:02:39]} 17. cxd5 {[%emt 0:06:44]} Bxd5 {[%emt 0:03:06]} 18. Be3 {[%emt 0:08:01]} h6 {[%emt 0:01:36]} 19. Nh3 {[%emt 0:00:08]} Nh4 {[%emt 0:01:29]} 20. Rf2 {[%emt 0:04:50]} Bb6 {[%emt 0:03:57]} 21. Rc1 {[%emt 0:01:39]} Rd8 {[%emt 0:07:37]} 22. Bxc5 {[%emt 0:05:58]} Rc8 {[%emt 0:36:58]} 23. b4 {[%emt 0:01:53]} Bxc5 {[%emt 0:00:07]} 24. bxc5 {[%emt 0:00:22]} Qa4 {[%emt 0:01:51]} 25. Qc2 {[%emt 0:11:16]} Qc6 {[%emt 0:02:48]} 26. Bf1 {[%emt 0:06:04]} Rfd8 {[%emt 0:02:12]} 27. Qc3 {[%emt 0:01:14]} Kh7 {[%emt 0:03:26]} 28. Qa5 {[%emt 0:03:56]} Qa8 {[%emt 0:04:53]} 29. Qa6 {[%emt 0:02:25]} Ng6 {[%emt 0:04:59]} 30. Rc3 {[%emt 0:02:22]} Ne7 {[%emt 0:01:19]} 31. Qe2 {[%emt 0:02:44]} Bc6 {[%emt 0:02:15]} 32. Qh5 {[%emt 0:08:05]} Be8 {[%emt 0:00:05]} 33. Qh4 {[%emt 0:00:34]} Ng6 {[%emt 0:00:05]} 34. Qg3 {[%emt 0:00:06]} Rd1 {[%emt 0:01:10]} 35. Qe3 {[%emt 0:01:29]} Qd5 {[%emt 0:02:41]} 36. Qe2 {[%emt 0:07:31]} Rb8 {[%emt 0:05:59]} 37. Rd3 {[%emt 0:05:26]} Rxd3 {[%emt 0:00:05]} 38. Qxd3 {[%emt 0:00:02]} Qxc5 {[%emt 0:00:06]} 39. Qd6 {[%emt 0:00:34]} Qxd6 {[%emt 0:00:31]} 40. exd6 {[%emt 0:00:02]} Rb1 {[%emt 0:00:05]} 41. g3 {[%emt 0:01:29]} Bb5 {[%emt 0:01:00]} 42. Kg2 {[%emt 0:00:46]} Bc6+ {[%emt 0:00:01]} 43. Kg1 {[%emt 0:00:05]} Nf8 {[%emt 0:00:32]} 44. Rd2 {[%emt 0:01:29]} Bb5 {[%emt 0:00:05]} 0-1

[Event "Marshall CC FIDE Premier August 2024"]
[Site "New York"]
[Date "2024.08.04"]
[Round "3.3"]
[White "Lin, Bryan Enming"]
[Black "Ayyappan, Santhosh"]
[Result "1-0"]
[ECO "B00"]
[WhiteElo "2155"]
[BlackElo "1970"]
[Annotator "RC"]
[PlyCount "77"]
[EventDate "2024.08.02"]
[EventType "swiss"]
[EventCountry "USA"]
[SourceTitle "playchess.com"]
[Source "ChessBase"]
[SourceQuality "1"]
[TimeControl "5400+30"]

1. e4 {[%emt 0:01:05]} Nc6 {[%emt 0:00:51]} 2. Nc3 {[%emt 0:02:50]} Nf6 {[%emt 0:03:00]} 3. d4 {[%emt 0:01:25]} e5 {[%emt 0:03:50]} 4. dxe5 {[%emt 0:05:30]} Nxe5 {[%emt 0:00:07]} 5. f4 {[%emt 0:00:27]} Nc6 {[%emt 0:05:41]} 6. e5 {[%emt 0:00:33]} Ng8 {[%emt 0:00:46]} 7. Nf3 {[%emt 0:01:45]} d6 {[%emt 0:02:33]} 8. Bb5 {[%emt 0:02:48]} Bg4 {[%emt 0:02:10]} 9. h3 {[%emt 0:00:53]} Bxf3 {[%emt 0:02:21]} 10. Qxf3 {[%emt 0:00:07]} Qd7 {[%emt 0:00:54]} 11. Be3 {[%emt 0:01:22]} a6 {[%emt 0:03:34]} 12. Ba4 {[%emt 0:01:17]} O-O-O {[%emt 0:07:26]} 13. O-O-O {[%emt 0:00:28]} Kb8 {[%emt 0:09:31]} 14. Rhe1 {[%emt 0:01:11]} Nge7 {[%emt 0:03:23]} 15. exd6 {[%emt 0:01:40]} cxd6 {[%emt 0:00:04]} 16. Bb6 {[%emt 0:00:15]} Re8 {[%emt 0:00:22]} 17. Ne4 {[%emt 0:00:36]} d5 {[%emt 0:06:19]} 18. Nc5 {[%emt 0:00:30]} Qc8 {[%emt 0:00:44]} 19. f5 {[%emt 0:02:32]} Ka8 {[%emt 0:04:15]} 20. Kb1 {[%emt 0:02:00]} Ng8 {[%emt 0:05:46]} 21. Rxe8 {[%emt 0:01:07]} Qxe8 {[%emt 0:37:23]} 22. Qxd5 {[%emt 0:00:46]} Nf6 {[%emt 0:00:00]} 23. Qf3 {[%emt 0:02:46]} Bxc5 {[%emt 0:00:00]} 24. Bxc5 {[%emt 0:00:38]} Ne4 {[%emt 0:00:00]} 25. Be3 {[%emt 0:01:55]} Qe5 {[%emt 0:00:00]} 26. Bxc6 {[%emt 0:01:47]} bxc6 {[%emt 0:00:00]} 27. Rd7 {[%emt 0:01:57]} Re8 {[%emt 0:00:00]} 28. Kc1 {[%emt 0:02:28]} Qa5 {[%emt 0:00:00]} 29. c3 {[%emt 0:02:45]} f6 {[%emt 0:00:00]} 30. a3 {[%emt 0:06:50]} g6 {[%emt 0:00:00]} 31. Ra7+ {[%emt 0:04:21]} Kb8 {[%emt 0:00:12]} 32. Qf4+ {[%emt 0:00:50]} Qe5 {[%emt 0:01:58]} 33. Qxe5+ {[%emt 0:02:31]} Rxe5 {[%emt 0:00:12]} 34. Rxh7 {[%emt 0:03:23]} Rxf5 {[%emt 0:00:12]} 35. Re7 {[%emt 0:01:11]} Ng3 {[%emt 0:00:53]} 36. Kc2 {[%emt 0:44:01]} Rf1 {[%emt 0:00:43]} 37. Bc5 {[%emt 0:00:00]} Nf5 {[%emt 0:00:59]} 38. Rh7 {[%emt 0:00:00]} Kc8 {[%emt 0:01:04]} 39. a4 {[%emt 0:00:00]} 1-0

[Event "Marshall CC FIDE Premier August 2024"]
[Site "New York"]
[Date "2024.08.04"]
[Round "3.4"]
[White "Hebbar, Eshaan"]
[Black "Chin, Spencer"]
[Result "1-0"]
[ECO "D32"]
[WhiteElo "2191"]
[BlackElo "2129"]
[Annotator "RC"]
[PlyCount "109"]
[EventDate "2024.08.02"]
[EventType "swiss"]
[EventCountry "USA"]
[SourceTitle "playchess.com"]
[Source "ChessBase"]
[SourceQuality "1"]
[TimeControl "5400+30"]

1. d4 {[%emt 0:00:03]} d5 {[%emt 0:01:52]} 2. c4 {[%emt 0:00:03]} e6 {[%emt 0:00:17]} 3. Nc3 {[%emt 0:00:10]} c5 {[%emt 0:00:24]} 4. cxd5 {[%emt 0:00:08]} cxd4 {[%emt 0:00:07]} 5. Qa4+ {[%emt 0:00:11]} Bd7 {[%emt 0:00:06]} 6. Qxd4 {[%emt 0:00:06]} exd5 {[%emt 0:00:27]} 7. Qxd5 {[%emt 0:00:48]} Nf6 {[%emt 0:00:35]} 8. Qd1 {[%emt 0:05:49]} Bc5 {[%emt 0:01:11]} 9. Nf3 {[%emt 0:01:23]} O-O {[%emt 0:00:09]} 10. e3 {[%emt 0:00:11]} Qe7 {[%emt 0:00:43]} 11. Be2 {[%emt 0:02:12]} Nc6 {[%emt 0:00:37]} 12. O-O {[%emt 0:06:49]} Ne5 {[%emt 0:00:26]} 13. Nxe5 {[%emt 0:14:25]} Qxe5 {[%emt 0:00:41]} 14. Bf3 {[%emt 0:00:01]} Rfd8 {[%emt 0:06:44]} 15. Qe2 {[%emt 0:01:54]} Rac8 {[%emt 0:15:25]} 16. Rd1 {[%emt 0:10:20]} Bf5 {[%emt 0:09:11]} 17. Rxd8+ {[%emt 0:02:48]} Rxd8 {[%emt 0:00:45]} 18. Bd2 {[%emt 0:05:49]} Bd3 {[%emt 0:09:29]} 19. Qe1 {[%emt 0:00:11]} h5 {[%emt 0:02:33]} 20. Ne2 {[%emt 0:19:53]} h4 {[%emt 0:13:11]} 21. Bc3 {[%emt 0:00:57]} Qf5 {[%emt 0:04:38]} 22. Nf4 {[%emt 0:02:06]} Bb5 {[%emt 0:06:58]} 23. Rd1 {[%emt 0:03:04]} Rxd1 {[%emt 0:05:06]} 24. Qxd1 {[%emt 0:00:01]} Bb6 {[%emt 0:01:51]} 25. h3 {[%emt 0:02:46]} Bc7 {[%emt 0:04:51]} 26. Bxf6 {[%emt 0:03:27]} Qxf6 {[%emt 0:02:25]} 27. Nd5 {[%emt 0:00:10]} Qe5 {[%emt 0:01:02]} 28. Nxc7 {[%emt 0:00:02]} Qxc7 {[%emt 0:00:03]} 29. Qd4 {[%emt 0:02:34]} Bc6 {[%emt 0:07:29]} 30. Bxc6 {[%emt 0:00:25]} Qxc6 {[%emt 0:02:12]} 31. Qd8+ {[%emt 0:00:01]} Kh7 {[%emt 0:00:01]} 32. Qxh4+ {[%emt 0:00:02]} Kg8 {[%emt 0:00:02]} 33. Qd8+ {[%emt 0:00:38]} Kh7 {[%emt 0:00:03]} 34. Qd4 {[%emt 0:00:02]} a6 {[%emt 0:00:40]} 35. a4 {[%emt 0:00:27]} g6 {[%emt 0:00:29]} 36. h4 {[%emt 0:00:56]} Qc1+ {[%emt 0:00:43]} 37. Kh2 {[%emt 0:00:02]} Qc2 {[%emt 0:00:33]} 38. f3 {[%emt 0:01:59]} Qf2 {[%emt 0:01:11]} 39. a5 {[%emt 0:00:47]} Qe1 {[%emt 0:01:46]} 40. b4 {[%emt 0:00:16]} Kg8 {[%emt 0:00:27]} 41. Qd8+ {[%emt 0:00:50]} Kg7 {[%emt 0:00:09]} 42. Qe7 {[%emt 0:00:26]} Kg8 {[%emt 0:00:45]} 43. e4 {[%emt 0:00:11]} Kg7 {[%emt 0:00:47]} 44. e5 {[%emt 0:01:58]} Kg8 {[%emt 0:00:38]} 45. Kh3 {[%emt 0:04:11]} Qh1+ {[%emt 0:00:46]} 46. Kg3 {[%emt 0:00:04]} Qe1+ {[%emt 0:00:15]} 47. Kg4 {[%emt 0:03:25]} Qf2 {[%emt 0:01:52]} 48. Kh3 {[%emt 0:01:54]} Qf1 {[%emt 0:01:24]} 49. e6 {[%emt 0:04:39]} Qh1+ {[%emt 0:00:14]} 50. Kg3 {[%emt 0:00:01]} Qe1+ {[%emt 0:00:07]} 51. Kg4 {[%emt 0:00:04]} fxe6 {[%emt 0:01:03]} 52. Kg5 {[%emt 0:00:42]} Qg3+ {[%emt 0:00:34]} 53. Kh6 {[%emt 0:00:31]} Qf4+ {[%emt 0:00:30]} 54. Kxg6 {[%emt 0:00:02]} Qg3+ {[%emt 0:00:29]} 55. Kh6 {[%emt 0:00:21]} 1-0

[Event "Marshall CC FIDE Premier August 2024"]
[Site "New York"]
[Date "2024.08.04"]
[Round "3.5"]
[White "Zhang, Alex"]
[Black "Ray, Sarathi"]
[Result "1-0"]
[ECO "D13"]
[WhiteElo "2032"]
[BlackElo "1955"]
[Annotator "RC"]
[PlyCount "123"]
[EventDate "2024.08.02"]
[EventType "swiss"]
[EventCountry "USA"]
[SourceTitle "playchess.com"]
[Source "ChessBase"]
[SourceQuality "1"]
[TimeControl "5400+30"]

1. d4 {[%emt 0:00:27]} d5 {[%emt 0:00:11]} 2. c4 {[%emt 0:00:07]} c6 {[%emt 0:00:09]} 3. cxd5 {[%emt 0:00:08]} cxd5 {[%emt 0:00:24]} 4. Bf4 {[%emt 0:00:11]} Nc6 {[%emt 0:00:34]} 5. e3 {[%emt 0:01:25]} Nf6 {[%emt 0:01:00]} 6. Nc3 {[%emt 0:00:40]} a6 {[%emt 0:00:08]} 7. Be2 {[%emt 0:01:18]} Bf5 {[%emt 0:00:32]} 8. Nf3 {[%emt 0:02:09]} e6 {[%emt 0:01:15]} 9. Qb3 {[%emt 0:01:00]} Bd6 {[%emt 0:07:53]} 10. Bxd6 {[%emt 0:00:32]} Qxd6 {[%emt 0:00:13]} 11. Qxb7 {[%emt 0:00:21]} O-O {[%emt 0:00:21]} 12. Qb3 {[%emt 0:00:12]} Rfb8 {[%emt 0:02:17]} 13. Qa3 {[%emt 0:05:44]} Qxa3 {[%emt 0:00:20]} 14. bxa3 {[%emt 0:00:03]} Rb2 {[%emt 0:01:19]} 15. Na4 {[%emt 0:00:55]} Rbb8 {[%emt 0:02:42]} 16. O-O {[%emt 0:03:15]} h6 {[%emt 0:03:10]} 17. Rfc1 {[%emt 0:02:50]} Ne7 {[%emt 0:01:52]} 18. Ne5 {[%emt 0:04:41]} Ra7 {[%emt 0:05:25]} 19. g4 {[%emt 0:07:31]} Be4 {[%emt 0:03:33]} 20. f3 {[%emt 0:00:15]} Bh7 {[%emt 0:00:19]} 21. Kf2 {[%emt 0:13:30]} a5 {[%emt 0:00:57]} 22. Rc5 {[%emt 0:03:01]} Ne8 {[%emt 0:01:55]} 23. Rac1 {[%emt 0:03:35]} f6 {[%emt 0:01:17]} 24. Nc6 {[%emt 0:02:58]} Nxc6 {[%emt 0:00:11]} 25. Rxc6 {[%emt 0:00:08]} Kf7 {[%emt 0:00:26]} 26. Ba6 {[%emt 0:06:41]} Ke7 {[%emt 0:01:22]} 27. R1c5 {[%emt 0:04:31]} Rb1 {[%emt 0:01:50]} 28. Bc8 {[%emt 0:06:33]} Bg8 {[%emt 0:01:47]} 29. Ba6 {[%emt 0:05:05]} Rh1 {[%emt 0:02:51]} 30. Bf1 {[%emt 0:03:14]} Rxh2+ {[%emt 0:00:56]} 31. Bg2 {[%emt 0:00:04]} g5 {[%emt 0:00:31]} 32. Kg3 {[%emt 0:00:07]} Rh4 {[%emt 0:00:20]} 33. Nb6 {[%emt 0:02:29]} Kf8 {[%emt 0:02:48]} 34. Rc8 {[%emt 0:03:06]} h5 {[%emt 0:01:27]} 35. gxh5 {[%emt 0:02:14]} Rxh5 {[%emt 0:00:19]} 36. Ra8 {[%emt 0:02:06]} Rb7 {[%emt 0:02:56]} 37. Nc8 {[%emt 0:00:38]} Kg7 {[%emt 0:02:45]} 38. Rcxa5 {[%emt 0:02:06]} Rb2 {[%emt 0:00:50]} 39. R5a7+ {[%emt 0:00:29]} Bf7 {[%emt 0:00:15]} 40. Rd7 {[%emt 0:01:58]} Kg6 {[%emt 0:01:25]} 41. Ne7+ {[%emt 0:01:38]} Kg7 {[%emt 0:00:29]} 42. Nxd5 {[%emt 0:01:26]} exd5 {[%emt 0:04:49]} 43. Rxe8 {[%emt 0:00:07]} Kg6 {[%emt 0:01:07]} 44. Ree7 {[%emt 0:01:57]} Rh7 {[%emt 0:00:20]} 45. a4 {[%emt 0:04:37]} Rxa2 {[%emt 0:02:08]} 46. Ra7 {[%emt 0:00:10]} f5 {[%emt 0:01:38]} 47. Bh3 {[%emt 0:00:33]} f4+ {[%emt 0:00:45]} 48. exf4 {[%emt 0:00:08]} gxf4+ {[%emt 0:00:22]} 49. Kxf4 {[%emt 0:02:57]} Rxh3 {[%emt 0:00:46]} 50. Rxf7 {[%emt 0:00:22]} Rxa4 {[%emt 0:01:27]} 51. Rg7+ {[%emt 0:00:11]} Kf6 {[%emt 0:00:29]} 52. Rxa4 {[%emt 0:00:08]} Kxg7 {[%emt 0:00:08]} 53. Kg4 {[%emt 0:00:14]} Rh6 {[%emt 0:00:51]} 54. f4 {[%emt 0:00:20]} Kf7 {[%emt 0:00:15]} 55. Ra7+ {[%emt 0:00:26]} Ke8 {[%emt 0:00:07]} 56. Kf5 {[%emt 0:00:24]} Rh5+ {[%emt 0:01:56]} 57. Ke6 {[%emt 0:00:09]} Kf8 {[%emt 0:00:16]} 58. f5 {[%emt 0:00:28]} Rh1 {[%emt 0:00:46]} 59. Ra8+ {[%emt 0:00:17]} Kg7 {[%emt 0:00:03]} 60. f6+ {[%emt 0:00:18]} Kg6 {[%emt 0:00:13]} 61. Rg8+ {[%emt 0:00:09]} Kh7 {[%emt 0:00:15]} 62. f7 {[%emt 0:00:44]} 1-0

[Event "Marshall CC FIDE Premier August 2024"]
[Site "New York"]
[Date "2024.08.04"]
[Round "4.1"]
[White "Nakada, Akira"]
[Black "Lin, Bryan Enming"]
[Result "1/2-1/2"]
[ECO "E90"]
[WhiteElo "2417"]
[BlackElo "2155"]
[Annotator "RC"]
[PlyCount "51"]
[EventDate "2024.08.02"]
[EventType "swiss"]
[EventCountry "USA"]
[SourceTitle "playchess.com"]
[Source "ChessBase"]
[SourceQuality "1"]
[TimeControl "5400+30"]

1. c4 {[%emt 0:00:02]} Nf6 {[%emt 0:00:15]} 2. Nc3 {[%emt 0:00:10]} g6 {[%emt 0:00:15]} 3. e4 {[%emt 0:00:07]} d6 {[%emt 0:00:07]} 4. d4 {[%emt 0:00:05]} Bg7 {[%emt 0:00:11]} 5. h3 {[%emt 0:00:10]} O-O {[%emt 0:00:12]} 6. Be3 {[%emt 0:00:06]} c5 {[%emt 0:00:07]} 7. Nf3 {[%emt 0:00:23]} Qa5 {[%emt 0:00:13]} 8. Bd3 {[%emt 0:00:08]} Nfd7 {[%emt 0:00:21]} 9. Be2 {[%emt 0:00:14]} e5 {[%emt 0:04:55]} 10. d5 {[%emt 0:02:10]} f5 {[%emt 0:07:15]} 11. exf5 {[%emt 0:03:56]} gxf5 {[%emt 0:01:09]} 12. Ng5 {[%emt 0:00:04]} Nf6 {[%emt 0:02:25]} 13. O-O {[%emt 0:09:13]} Qd8 {[%emt 0:06:25]} 14. f4 {[%emt 0:06:52]} e4 {[%emt 0:05:55]} 15. g4 {[%emt 0:00:24]} h6 {[%emt 0:03:56]} 16. Ne6 {[%emt 0:00:03]} Bxe6 {[%emt 0:00:06]} 17. dxe6 {[%emt 0:00:04]} Nc6 {[%emt 0:01:40]} 18. gxf5 {[%emt 0:06:54]} Ne7 {[%emt 0:01:18]} 19. Bf2 {[%emt 0:19:59]} Nxf5 {[%emt 0:01:57]} 20. Nxe4 {[%emt 0:00:12]} Kh8 {[%emt 0:04:14]} 21. Nc3 {[%emt 0:06:30]} Qe8 {[%emt 0:02:29]} 22. Re1 {[%emt 0:05:02]} Qxe6 {[%emt 0:04:33]} 23. Bg4 {[%emt 0:01:32]} Qd7 {[%emt 0:01:33]} 24. Nd5 {[%emt 0:08:10]} Qf7 {[%emt 0:03:40]} 25. Qd3 {[%emt 0:20:50]} Nxd5 {[%emt 0:01:50]} 26. Qxd5 {[%emt 0:01:28]} 1/2-1/2